Cogmind - Beta 14 *** ADVENTURER MODE // 2025.03.22 @ 08:18:56 // Winter2019/RPGLIKE Player: Gallgagger Result: Destroyed by Y-64 Sentinel with Wave Gun Performance ------------- Evolutions (5) 2500 Regions Visited (5) 1000 Robots Destroyed (92) 460 Value Destroyed (3559) 3559 Prototype IDs (7) 140 Alien Tech Used (0) 0 Bonus (2638) 2638 TOTAL SCORE: 10297 Bonus ------- High Alert Combat Kills 1039 Follower Combat Kills 1360 Registered with UFD 300 Friendly Fire -61 Cogmind --------- Core Integrity 0/1100 Matter 290/300 Energy 143/185 System Corruption 2% Temperature Cool (27) Movement Walking (90) Location -5/Factory Parts ------- > --- POWER (2) -------- Light Ion Engine Light Nuclear Core > --- PROPULSION (3+3) - Overtuned Flexi-carbon Leg Overtuned Flexi-carbon Leg Arachnoskeleton (+++) > --- UTILITY (7) ------ Scrap Suit Deep Structural Scanner Improved Medium Armor Plating Improved Dynamic Insulation System > --- WEAPON (3) ------- Autobeam Overtuned Beamcaster Katana > --- INVENTORY (5) ---- Improved Terrain Scanner CPS Tube (2) CPS Tube (2) CPS Tube (2) CPS Tube (2) Peak State ------------ > --- POWER ------------ Light Ion Engine Light Nuclear Core > --- PROPULSION ------- Overtuned Flexi-carbon Leg Overtuned Flexi-carbon Leg Arachnoskeleton > --- UTILITY ---------- Scrap Suit Deep Structural Scanner Improved Reaction Control System Improved Medium Armor Plating Scrapoid Pod > --- WEAPON ----------- Autobeam Overtuned Beamcaster Makeshift Sword > --- INVENTORY -------- Improved Terrain Scanner CPS Tube CPS Tube CPS Tube [Rating: 83] Favorites ----------- Power Light Ion Engine Engine Light Ion Engine Power Core Light Nuclear Core Propulsion Arachnoskeleton Leg Arachnoskeleton Wheel Compact Wheel Flight Unit Flight Unit Utility Makeshift Light Armor Plating Device Improved Terrain Scanner Processor Signal Interpreter Protection Makeshift Light Armor Plating Weapon Makeshift Sword Energy Gun Autobeam Energy Cannon Subdweller Beam Cannon Ballistic Gun Assault Rifle Special Weapon Mining Laser Slashing Weapon Makeshift Sword Build | -11 -10 -10 -7 -7 -5 ------- Run | Yrd Mat Sub Rec Scr Fac Slots Evolved 11 | 4 . 3 . 4 . Power 1 | 1 . . . . . Propulsion 2 | 1 . 1 . . . Utility 6 | 1 . 2 . 3 . Weapon 2 | 1 . . . 1 . Parts Attached 44 | 7 10 12 1 10 4 Power 4 | 2 2 . . . . Engine 3 | 2 1 . . . . Core 1 | . 1 . . . . Reactor . | . . . . . . Propulsion 10 | 2 4 2 . 2 . Treads . | . . . . . . Leg 4 | . . 2 . 2 . Wheel 2 | 2 . . . . . Hover . | . . . . . . Flight 4 | . 4 . . . . Utility 12 | 1 1 3 1 5 1 Device 6 | 1 . . . 4 1 Storage . | . . . . . . Processor 1 | . 1 . . . . Hackware . | . . . . . . Protection 5 | . . 3 1 1 . Artifact . | . . . . . . Weapon 18 | 2 3 7 . 3 3 Energy Gun 5 | . . 2 . 2 1 Energy Cannon 1 | . . 1 . . . Ballistic Gun 7 | 2 3 2 . . . Ballistic Cannon . | . . . . . . Launcher . | . . . . . . Special Weapon 1 | . . . . . 1 Impact Weapon . | . . . . . . Slashing Weapon 4 | . . 2 . 1 1 Piercing Weapon . | . . . . . . Special Melee Weapon . | . . . . . . Unidentified Prototypes 1 | . . 1 . . . Parts Lost . | . . . . . . Power . | . . . . . . Propulsion . | . . . . . . Utility . | . . . . . . Weapon . | . . . . . . Highest Loss Streak . | . . . . . . To Critical Strikes . | . . . . . . Average Slot Usage (%) 66 | . 98 63 57 58 68 Engine 6 | . 12 7 7 6 5 Core 6 | . 11 7 7 6 5 Leg 9 | . . 6 7 11 16 Flight 2 | . 22 . . . . Device 9 | . 12 6 . 8 18 Processor 3 | . 10 6 . . . Protection 9 | . . 12 21 9 5 Energy Gun 6 | . . 6 7 7 11 Ballistic Gun 3 | . 25 1 . . . Slashing Weapon 5 | . . 6 7 6 5 Peak Build Rating 83 | 9 12 49 43 83 83 Average Rating 50 | 5 11 42 43 57 74 On Entrance 31 | . 9 12 43 43 83 Naked Turns . | . . . . . . Heaviest Build 52 | 11 13 44 44 52 42 Greatest Support 101 | 26 26 75 55 101 55 Greatest Overweight (x) 3 | 1 3 1 . . . Average Overweight (x) . | . . . . . . Largest Inventory Capacity 5 | . . 2 2 5 5 Average Capacity 2 | . . . 2 3 5 Most Carried 5 | . . 2 1 5 5 Average Carried 1 | . . . 1 2 5 Final Capacity 5 | . . 2 2 5 5 Final Carried 5 | . . 1 1 5 5 Class Distribution -------------------- 48% | Mutant 39% | Derelict-Mutant 8% | Commander-Mutant 3% | Scavenger-Mutant Dominant Class ---------------- Mutant | -10/Materials Derelict-Mutant | -10/Subcaves Derelict-Mutant | -7/Recycling Mutant | -7/Scraptown Mutant | -5/Factory Resources | -11 -10 -10 -7 -7 -5 ----------- Run | Yrd Mat Sub Rec Scr Fac Matter Collected 1966 | 268 494 249 16 412 527 Remotely . | . . . . . . Salvage Created 2989 | 27 769 587 245 . 1361 Parts 219 | 4 81 75 5 . 54 Haulers Intercepted 3 | . 2 . . . 1 Recyclers Shooed 2 | . . . . . 2 Parts Field Recycled . | . . . . . . Retrieved Matter . | . . . . . . Parts Self-Destructed 28 | . . 28 . . . Prevented . | . . . . . . Kills | -11 -10 -10 -7 -7 -5 ------- Run | Yrd Mat Sub Rec Scr Fac Combat Hostiles Destroyed 79 | . 25 22 4 . 28 Melee 32 | . . 16 3 . 13 Guns 42 | . 25 6 . . 11 AOE 2 | . . . . . 2 Classes Destroyed 13 | 1 5 3 . . 4 Worker 2 | . . . . . 2 Tunneler 1 | 1 . . . . . Hauler 3 | . 2 . . . 1 Mechanic 1 | . 1 . . . . Turret 2 | . . 2 . . . Watcher 4 | . 3 . . . 1 Swarmer 14 | . 6 5 . . 3 Grunt 33 | . 19 . . . 14 Protector 1 | . . . . . 1 Sentry 7 | . . 1 4 . 2 Hunter 2 | . . . . . 2 Programmer 6 | . . . . . 6 Subdweller 16 | . . 16 . . . Best Kill Streak 8 | 1 6 3 2 . 8 Combat Bots Only 8 | . 5 3 2 . 8 Max Kills in Single Turn 2 | 1 2 1 1 . 2 Gunslinging . | . . . . . . Exploded 2 | . . . . . 2 Melee 1 | . . 1 1 . 1 Uniques/NPCs Destroyed . | . . . . . . Combat | -11 -10 -10 -7 -7 -5 -------- Run | Yrd Mat Sub Rec Scr Fac Hostile Shots Fired 576 | . 69 124 99 . 284 Missed 246 | . 30 47 47 . 122 Damage Taken 4056 | . 390 1020 269 . 2377 Core 2920 | . 314 768 133 . 1705 Absorbed by Shields . | . . . . . . Redirected to Core 2346 | . 244 563 112 . 1427 Ignored by Resistances 1203 | . 117 310 116 . 660 Core Remaining (%) 94 | 100 . . . 89 . Volleys Fired 93 | 2 64 19 . . 8 Largest 2 | 2 2 2 . . 1 Hottest 100 | 40 40 80 . . 100 Shots Fired 386 | 4 128 35 18 . 201 Gun 384 | 4 128 33 18 . 201 Cannon 2 | . . 2 . . . Launcher . | . . . . . . Special . | . . . . . . Kinetic 160 | 4 128 28 . . . Thermal 226 | . . 7 18 . 201 Explosive . | . . . . . . Electromagnetic . | . . . . . . Robot Hit Streak 33 | 2 20 33 15 . 19 Robot Miss Streak 10 | 1 2 1 2 . 10 Penetration Max . | . . . . . . Secondary Targets 3 | . 3 . . . . Max Gunslinging Chain 1 | . 1 . . . . Autonomous 225 | . . 2 18 . 205 Shots Hit Robots 430 | 2 100 71 25 . 232 Core Hits 259 | 1 50 31 17 . 160 Critical Kills 1 | . 1 . . . . Critical Parts Destroyed . | . . . . . . Critical Strikes 20 | . 1 1 1 . 17 Burn 1 | . . . . . 1 Destroy 1 | . 1 . . . . Sever 18 | . . 1 1 . 16 Melee Attacks 170 | . . 77 13 . 80 Impact . | . . . . . . Slashing 170 | . . 77 13 . 80 Piercing . | . . . . . . Sneak Attacks 3 | . . . . . 3 Combat Hostiles . | . . . . . . Follow-up Attacks . | . . . . . . Damage Inflicted 9129 | 27 1308 2048 598 . 5148 Guns 4463 | 27 1308 367 306 . 2455 Cannons . | . . . . . . Explosions 345 | . . . . . 345 Melee 4321 | . . 1681 292 . 2348 Ramming . | . . . . . . Kinetic 1637 | 27 1308 302 . . . Thermal 2826 | . . 65 306 . 2455 Explosive 345 | . . . . . 345 Electromagnetic . | . . . . . . Impact . | . . . . . . Slashing 4321 | . . 1681 292 . 2348 Piercing . | . . . . . . Highest Corruption 2 | . 1 1 1 1 2 Average Corruption 1 | . 1 1 1 1 1 Corruption Purged . | . . . . . . Corruption Blocked . | . . . . . . Effects 24 | . 2 10 4 . 8 Message Errors 7 | . . 3 . . 4 Matter Fused 8 | . 1 5 1 . 1 Heat Flow Errors 1 | . . 1 . . . Energy Discharges 2 | . 1 . . . 1 Parts Rejected 1 | . . . 1 . . Data Loss (minor) 3 | . . 1 1 . 1 Data Loss (major) 1 | . . . 1 . . Misfires 1 | . . . . . 1 Overload Shots . | . . . . . . Overflow Damage 22 | . . 5 5 . 12 Projectiles . | . . . . . . Explosions . | . . . . . . Melee 22 | . . 5 5 . 12 Knockbacks . | . . . . . . Impact . | . . . . . . Kinetic . | . . . . . . Secondary . | . . . . . . Self-Inflicted Damage 77 | . . . . . 77 Shots 1 | . . . . . 1 Rammed . | . . . . . . Targets Rammed . | . . . . . . Kicked . | . . . . . . Crushed . | . . . . . . Highest Temperature 259 | . . 71 32 . 259 Average Temperature 55 | . . 38 14 . 68 Received Heat Transfer 1315 | . 195 327 108 . 685 Siege Activations . | . . . . . . Robots Corrupted . | . . . . . . Combat Hostiles . | . . . . . . Parts Fried 1 | . . . . . 1 Impact Corruptions . | . . . . . . Robots Melted 2 | . . . 1 . 1 Combat Hostiles 2 | . . . 1 . 1 Parts Melted 26 | . . . 9 . 17 Heat Transferred 9352 | . . 161 1025 . 8166 Parts Sabotaged . | . . . . . . Parts Stolen . | . . . . . . Parts Stripped . | . . . . . . Power Chain Reactions 1 | . . . . . 1 Alert | -11 -10 -10 -7 -7 -5 ------- Run | Yrd Mat Sub Rec Scr Fac Peak Influence 1755 | 5 692 . 347 . 1755 Initial 2 | . 2 . . . . Average 689 | 2 447 . 186 . 1065 Maximum Alert Level 5 | . 2 . 1 . 5 Low Security (%) 22 | 100 14 . 58 . 7 Level 1 17 | . 20 . 41 . 6 Level 2 22 | . 65 . . . 9 Level 3 6 | . . . . . 13 Level 4 24 | . . . . . 49 Level 5 6 | . . . . . 13 High Security . | . . . . . . Max Security . | . . . . . . Squads Dispatched 31 | . 8 . . . 23 Investigation 16 | . 8 . . . 8 Extermination 2 | . . . . . 2 Reinforcement 9 | . . . . . 9 Assault 4 | . . . . . 4 Garrison . | . . . . . . Intercept . | . . . . . . Searches Triggered . | . . . . . . Construction Impeded 2 | . . . . . 2 Haulers Reinforced 3 | . . . . . 3 Active Scanning Responses . | . . . . . . Cargo Convoy Interrupts 1 | . . . . . 1 Stealth | -11 -10 -10 -7 -7 -5 --------- Run | Yrd Mat Sub Rec Scr Fac Distress Signals 2 | . 1 . . . 1 Communications Jammed . | . . . . . . Distress Signals . | . . . . . . Times Spotted 147 | . 30 26 4 . 87 Peak Tracking Total 12 | . 5 3 2 . 12 Tactical Retreats 11 | . . 1 . . 10 Traps | -11 -10 -10 -7 -7 -5 ------- Run | Yrd Mat Sub Rec Scr Fac Traps Triggered 7 | . 4 3 . . . Indirectly . | . . . . . . Trap Hack Attempts . | . . . . . . Triggered . | . . . . . . Disarmed . | . . . . . . Reprogrammed 4 | . 4 . . . . Reused 1 | . 1 . . . . Traps Extracted . | . . . . . . Installed . | . . . . . . Triggered 3 | . 1 . . . 2 Machines | -11 -10 -10 -7 -7 -5 ---------- Run | Yrd Mat Sub Rec Scr Fac Machines Disabled 8 | . . 1 1 . 6 Max in Single Turn 1 | . . 1 1 . 1 Garrison Access 1 | . . . . . 1 Machines Repaired . | . . . . . . Machines Dismantled . | . . . . . . Machines Sabotaged 2 | . 2 . . . . Overloaded Fab Kills 5 | . . . . . 5 Hacking | -11 -10 -10 -7 -7 -5 --------- Run | Yrd Mat Sub Rec Scr Fac Machines Accessed 37 | . 10 1 11 4 11 Terminals 15 | . 8 . 3 . 4 Fabricators 1 | . . . . . 1 Repair Stations . | . . . . . . Recycling Units 15 | . 2 . 8 . 5 Scanalyzers . | . . . . . . Garrison Access 1 | . . . . . 1 Total Hacks 80 | . 18 4 22 16 20 Successful 60 | . 14 4 15 16 11 Failed 20 | . 4 . 7 . 9 Catastrophic 7 | . 1 . 1 . 5 Database Lockouts . | . . . . . . Manual 50 | . 18 . 19 . 13 Terminals 39 | . 14 . 14 . 11 Fabricators 1 | . . . . . 1 Repair Stations . | . . . . . . Recycling Units 19 | . 4 . 8 . 7 Scanalyzers . | . . . . . . Garrison Access 1 | . . . . . 1 Terminal Hacks 31 | . 3 4 5 16 3 Record 19 | . . 4 . 15 . Robot Analysis 4 | . 2 . 2 . . Branch Access Points 1 | . . . 1 . . Terminal Index 1 | . . . . . 1 Recycling Unit Index 1 | . . . 1 . . Alert Level 1 | . . . 1 . . Reprogram Traps 1 | . 1 . . . . Hauler Manifests 1 | . . . . . 1 Registered Components 1 | . . . . . 1 Derelict Proto ID Bank 1 | . . . . 1 . Fabricator Hacks . | . . . . . . Repair Station Hacks . | . . . . . . Recycling Unit Hacks . | . . . . . . Scanalyzer . | . . . . . . Garrison Access Hacks 1 | . . . . . 1 Seal Access 1 | . . . . . 1 Unauthorized Hacks 27 | . 10 . 10 . 7 Terminals 11 | . 8 . 2 . 1 Botnet 5 | . 2 . 2 . 1 Sabotage 6 | . 6 . . . . Fabricators 1 | . . . . . 1 Overload 1 | . . . . . 1 Repair Stations 5 | . . . . . 5 Recycling Units 10 | . 2 . 8 . . Tunnel 10 | . 2 . 8 . . Fedlink 2 | . . . . . 2 Scrapoids 3 | . . . . . 3 Scanalyzers . | . . . . . . Garrison Access . | . . . . . . Data Cores Recovered . | . . . . . . Used . | . . . . . . Hacking Detections 10 | . 2 . 3 . 5 Full Trace Events 2 | . . . 1 . 1 Feedback Events . | . . . . . . Feedback Blocked . | . . . . . . Robot Schematics Acquired . | . . . . . . Robots Built . | . . . . . . Authchips . | . . . . . . Time . | . . . . . . Total Robot Build Rating . | . . . . . . Part Schematics Acquired . | . . . . . . Parts Built . | . . . . . . Authchips . | . . . . . . Time . | . . . . . . Total Part Build Rating . | . . . . . . Parts Repaired . | . . . . . . Time . | . . . . . . Parts Recycled . | . . . . . . Recycled Matter . | . . . . . . Retrieved Matter . | . . . . . . Retrieved Components . | . . . . . . Parts Scanalyzed . | . . . . . . Part Schematics Acquired . | . . . . . . Parts Damaged . | . . . . . . Bothacking | -11 -10 -10 -7 -7 -5 ------------ Run | Yrd Mat Sub Rec Scr Fac Used RIF Installer . | . . . . . . Robots Hacked . | . . . . . . Non-combat . | . . . . . . Combat . | . . . . . . Robot Hacks Applied . | . . . . . . Relay Couplers Released . | . . . . . . Fabnet Peak Effective % . | . . . . . . Robots Rewired . | . . . . . . Allies Hacked 1 | . . . . . 1 Hacks Repelled . | . . . . . . Allies | -11 -10 -10 -7 -7 -5 -------- Run | Yrd Mat Sub Rec Scr Fac Total Allies 20 | . . . . . 20 Largest Group 13 | . . . . . 13 Highest-Rated Group 614 | . . . . . 614 Highest-Rated Ally 50 | . . . . . 50 Total Orders . | . . . . . . Ally Attacks 282 | . . . . . 282 Total Damage 6245 | . . . . . 6245 Kills 39 | . . . . . 39 Allies Corrupted . | . . . . . . Allies Melted . | . . . . . . Intel | -11 -10 -10 -7 -7 -5 ------- Run | Yrd Mat Sub Rec Scr Fac Robot Analysis Total 4 | . 2 . 2 . . Derelict Logs Recovered 2 | . . 2 . . . Drone Launches . | . . . . . . Drone Recoveries . | . . . . . . Exploration | -11 -10 -10 -7 -7 -5 ------------- Run | Yrd Mat Sub Rec Scr Fac Turns Passed 6506 | 48 701 1830 577 2038 1312 Spaces Moved 6585 | 40 927 1657 604 2242 1115 Core 11 | 11 . . . . . Treads . | . . . . . . Legs 5522 | . . 1561 604 2242 1115 Wheels 63 | 29 34 . . . . Hover . | . . . . . . Flight 989 | . 893 96 . . . Fastest Speed 37 | 50 37 37 90 90 90 Average Speed 82 | 80 39 87 90 90 90 Slowest Speed 285 | 100 285 117 90 90 90 Overloaded Moves . | . . . . . . Propulsion Burnouts . | . . . . . . Robots Hopped 10 | . 10 . . . . Cave-ins Triggered . | . . . . . . Exploration Rate (%) 68 | 3 94 90 91 85 45 Regions Visited 5 Branch Regions 3 Pre-discovered Areas 11 | . 2 1 8 . . Known Exits Taken 1 | . 1 . . . . Unknown Exits Taken 4 | 1 . 1 1 1 . Scrap Searched 26 | . . 21 . 5 . Spaces Dug 12 | . . . 5 . 7 Terrain Destroyed 32 | . . . 5 . 27 Melee 12 | . . . 5 . 7 Projectile 1 | . . . . . 1 AOE 19 | . . . . . 19 Terrain Rammed . | . . . . . . Walls Destroyed . | . . . . . . Machines Disabled . | . . . . . . Actions | -11 -10 -10 -7 -7 -5 --------- Run | Yrd Mat Sub Rec Scr Fac Total 7290 | 48 1120 1908 623 2259 1332 Wait 249 | . 103 72 . . 74 Move 6560 | 39 906 1656 603 2241 1115 Hop 10 | . 10 . . . . Pick Up 8 | . . 2 . 6 . Fast Attach 30 | 7 7 8 1 6 1 Attach 3 | . . 1 . 2 . Detach . | . . . . . . Swap 11 | . 3 3 . 2 3 Drop 12 | . 1 9 . 2 . Fire 93 | 2 64 19 . . 8 Melee 170 | . . 77 13 . 80 Ram . | . . . . . . Kick . | . . . . . . Crush . | . . . . . . Escape Stasis . | . . . . . . Rewire 1 | . . . . . 1 Trap . | . . . . . . Miscellaneous 143 | . 26 61 6 . 50 Route ------- -11/Scrapyard -10/Materials (discovered 6 exits: *Mat x3 / *Min x2 / *Sub) -10/Subcaves (discovered 3 exits: *Mat x2 / *Rec) -7/Recycling (discovered 2 exits: *Fac / *Scr) -7/Scraptown (discovered 2 exits: *Fac x2) -5/Factory (discovered 3 exits: [*Fac x2] / [*Upp]) History --------- Turn | Location | Event 1 | -11/Scrapyard | Upgraded with Power slot (x1) 1 | -11/Scrapyard | Upgraded with Propulsion slot (x1) 1 | -11/Scrapyard | Upgraded with Utility slot (x1) 1 | -11/Scrapyard | Upgraded with Weapon slot (x1) 5 | -11/Scrapyard | Discovered new exit (range 15) 49 | -11/Scrapyard | Entered Materials 109 | -10/Materials | Discovered new exit (range 16) 225 | -10/Materials | Discovered new exit (range 10) 231 | -10/Materials | Reached level 2 315 | -10/Materials | Build established: Mutant 367 | -10/Materials | Discovered new exit (range 5) 369 | -10/Materials | Identified exit to Materials 379 | -10/Materials | Discovered new exit (range 9) 411 | -10/Materials | Discovered exit to Materials (range 14) 456 | -10/Materials | Reached level 3 512 | -10/Materials | Identified exit to Mines 563 | -10/Materials | Discovered new exit (range 8) 750 | -10/Materials | Identified exit to Subcaves 750 | -10/Materials | Entered Subcaves 752 | -10/Subcaves | Reached level 4 764 | -10/Subcaves | Shifting Twisted Machinery released Sub. Power Source 765 | -10/Subcaves | Shifting Twisted Machinery released Sub. Monowheel 797 | -10/Subcaves | Visited 4L-MR0's lab 803 | -10/Subcaves | Learned Materials emergency access door positions 804 | -10/Subcaves | Upgraded with Propulsion slot (x1) 805 | -10/Subcaves | Found Prototype Leg 805 | -10/Subcaves | Identified Arachnoskeleton 806 | -10/Subcaves | Attached Arachnoskeleton, gained temporary slots: Propulsion x3 927 | -10/Subcaves | Disturbed a concealed Subdweller 991 | -10/Subcaves | Upgraded with Utility slot (x2) 1068 | -10/Subcaves | Ambushed by Subdwellers from Twisted Machinery 1184 | -10/Subcaves | Shifting Twisted Machinery released Battle Cannon 1185 | -10/Subcaves | Curiously followed by a Cobbler waking with a query about "LVR3C" 1254 | -10/Subcaves | Visited Clippyterm 1256 | -10/Subcaves | Learned Research security intel 1286 | -10/Subcaves | Build established: Derelict-Mutant 1535 | -10/Subcaves | Disturbed a concealed Subdweller 1780 | -10/Subcaves | Shifting Twisted Machinery released Mak. Leg 1860 | -10/Subcaves | Discovered new exit (range 7) 1899 | -10/Subcaves | Discovered new exit (range 14) 2289 | -10/Subcaves | Shifting Twisted Machinery released Sub. Monowheel 2406 | -10/Subcaves | Discovered new exit (range 8) 2412 | -10/Subcaves | Identified exit to Materials 2461 | -10/Subcaves | Disturbed a concealed Subdweller 2580 | -10/Subcaves | Entered Recycling 2582 | -7/Recycling | Reached level 5 2582 | -7/Recycling | Reached level 6 2582 | -7/Recycling | Reached level 7 2582 | -7/Recycling | Reached level 8 2698 | -7/Recycling | Reached level 9 2719 | -7/Recycling | Discovered new exit (range 10) 2841 | -7/Recycling | Scanned before Scraplab entrance 3149 | -7/Recycling | Entered Scraplab 3156 | -7/Recycling | Discovered new exit (range 2) 3157 | -7/Recycling | Entered Scraptown 3159 | -7/Scraptown | Reached level 10 3159 | -7/Scraptown | System corruption cleaned by C-Scrubber 3303 | -7/Scraptown | Heard Great Nut preacher, LISTEN AND RECITE! 3307 | -7/Scraptown | Discovered new exit (range 11) 3363 | -7/Scraptown | Visited Spacefarers 3370 | -7/Scraptown | Visited Cyclists 3382 | -7/Scraptown | Visited Assassins FH 3394 | -7/Scraptown | Visited Shadow of the Wyrm 3432 | -7/Scraptown | Visited Cave Peace 3466 | -7/Scraptown | Visited Comm Corps 3489 | -7/Scraptown | Visited UFD Registry 3489 | -7/Scraptown | Registered with UFD as "Tooldrive" 3517 | -7/Scraptown | Visited Modified Component R&D 3560 | -7/Scraptown | Visited LU-1G1's Boring Crew 3624 | -7/Scraptown | Visited Research Penetration Think Tank 3637 | -7/Scraptown | Visited Scrapoid Pod Storage 3658 | -7/Scraptown | Visited Science Testing Area 3669 | -7/Scraptown | Visited Science Guys 3698 | -7/Scraptown | Visited DA-N13 Charitable Foundation 3706 | -7/Scraptown | Found DCF Scrap (27 items) 3724 | -7/Scraptown | Visited Scrap Suit Storage 3784 | -7/Scraptown | Found Scrapoid Pod 3796 | -7/Scraptown | Visited Cartography Club 4069 | -7/Scraptown | Visited Awakened 4085 | -7/Scraptown | Build established: Mutant 4189 | -7/Scraptown | Upgraded with Utility slot (x1) 4298 | -7/Scraptown | Upgraded with Utility slot (x2) 4336 | -7/Scraptown | Discovered new exit (range 3) 4442 | -7/Scraptown | Found Deep Structural Scanner 4477 | -7/Scraptown | Visited Derelict Rescue Squad 4645 | -7/Scraptown | Upgraded with Weapon slot (x1) 4706 | -7/Scraptown | Found Scrap Suit 4778 | -7/Scraptown | Delivered Scrap Shield to a Scientist 5195 | -7/Scraptown | Entered Factory 5197 | -5/Factory | Reached level 11 5197 | -5/Factory | Reached level 12 5197 | -5/Factory | Reached level 13 5197 | -5/Factory | Reached level 14 5197 | -5/Factory | Reached level 15 5254 | -5/Factory | Scrapoids reinforcements arrived? 5297 | -5/Factory | Reached level 16 5337 | -5/Factory | Scrapoid Pod released 05F10-D (x5) 5396 | -5/Factory | Reached level 17 5397 | -5/Factory | Scrapoids reinforcements arrived? 5429 | -5/Factory | Discovered new exit (range 9) 5495 | -5/Factory | First assault squad dispatched 5554 | -5/Factory | Reached level 18 5579 | -5/Factory | Reached level 19 5706 | -5/Factory | Build established: Commander-Mutant 5734 | -5/Factory | Reached level 20 5812 | -5/Factory | Discovered new exit (range 11) 5855 | -5/Factory | Lost 4 allies 5878 | -5/Factory | Spotted B-75 Beast 5943 | -5/Factory | Cargo convoy interrupted 5956 | -5/Factory | Core integrity fell below 50% 5971 | -5/Factory | Core integrity fell below 20% 6043 | -5/Factory | Destroyed 8 combat bots 6066 | -5/Factory | Reached level 21 6086 | -5/Factory | Build established: Mutant 6095 | -5/Factory | Scrapoids reinforcements arrived? 6149 | -5/Factory | Lost 5 allies 6456 | -5/Factory | Discovered new exit (range 7) 6507 | -5/Factory | Destroyed by Y-64 Sentinel with Wave Gun Last Messages --------------- Platform. 06448_ K-01 Serf collects debris. 06450_ U-05 Engineer works on Construction Platform. 06451_ System corrupted: Component data lost. 06452_ K-01 Serf collects debris. 06456_ EXIT=FOUND 06456_ K-01 Serf collects debris. 06456_ U-05 Engineer works on Construction Platform. 06461_ K-01 Serf collects debris. 06473_ K-01 Serf cleans the Subcomponent Replicator. 06493_ Slug penetrates Wall. 06496_ K-01 Serf cleans the Subcomponent Replicator. 06500_ WR/EJHM/CUSRPU<5 06507_ Critical hit (Burn: +37). Map ----- +----------------------------------------------------+ | ?????????????????????????????????????????????????? | | ?????????????????????############# ????????????? | | ?????????????????????############# ????????????? | | ?????????????????????############# ????????????? | | ?????????????????????############# ????????????? | | ?????????????????????####] # ????????????? | | ????????????????????##### ! """ # ????????????? | | ????????????????????##### Y" # ????????????? | | ????????????????????##### """ # ????????????? | | ????????????????????##### # ????????????? | | ????????????????????#### !!! # ????????????? | | ????????????????????#####/ !! # ## "" | | ????????????????????##### !! # ## | | ????????????????????##### # ## | | ?????????????????????#####;##+######+############# | | ?????????????????????##### | | ??????????????????????#### | | ??????????????????????####Y == " | | ??????? ############ == """"" | | ??????? ############ = """"" | | ??????? ############ k | | ???????#+################# """ """ | | ??????? """"" """"" | | ??????? """"" """"" | | ?????? | | ?????? g @ """ """ | | ?????? ! """"" """"" | | ??????################+### """"" """"" ##### | | ?????? ###### # ##### | | ?????? ######""" """ # """ """ ##### | | ?????? ######""" """ # """"" """"" ####? | | ?????????????????????? # """"" """"" ##### | | ?????????????????????? # ##### | | ?????????????????????? # ! ##### | | ?????????????????????? #########+#######+####### | | ?????????????????????? ## # # | | ??????????????????????? ## # # | | ??????????????????????? ## # # | | ????????????????????????????????? # ! # | | ????????????????????????????????? # # | | ????????????????????????????????? # ] # | | ?=??????????????????????????????? # < # | | ????????????????????????????????? # # | | ????????????????????????????????? # # | | ????????????????????????????????? # ! ! # | | ????????????????????????????????? # # | | ????????????????????????????????? # # | | ????????????????????????????????? ############## | | ?????????????????????????## ? # ###### | | ?????????????????????????## ? # " ###### | +----------------------------------------------------+ Best States ------------- Heat Dissipation 73 Energy Generation 24 Energy Capacity 185 Matter Stores 300 Matter Capacity 300 Sight Range 16 Terrain Scan Range 16 Terrain Scan Density 610 EM Shielding 3 Armor Coverage 1000 Resistance: KI 30 Resistance: TH 20 Resistance: EX 20 Resistance: EM 20 Resistance: I 20 Resistance: S 20 Resistance: P 20 Evasion (%) 67 Offensive Hacking 10 Item Schematics ----------------- None Robot Schematics ------------------ None Fabricated ------------ Nothing Alien Tech Used ----------------- None Achievements -------------- None Challenges ------------ None RPGLIKE | -11 -10 -10 -7 -7 -5 --------- Run | Yrd Mat Sub Rec Scr Fac Levels Raised 20 | . 2 1 5 1 11 XP Earned 34811 | 4000 4123 1850 7261 799 16778 XP Spent 17910 | 2960 100 4350 . 9800 700 Upgrades 44 | 12 1 11 . 10 10 Power Slot 1 | 1 . . . . . Propulsion Slot 2 | 1 . 1 . . . Utility Slot 6 | 1 . 2 . 3 . Weapon Slot 2 | 1 . . . 1 . Core Integrity 10 | . . . . . 10 Heat Dissipation 8 | 8 . . . . . Energy Generation 1 | . . . . 1 . Mass Support 1 | . 1 . . . . Inventory Capacity 5 | . . 2 . 3 . Terrain Scan Density 6 | . . 6 . . . Ranged Accuracy 1 | . . . . 1 . Melee Accuracy 1 | . . . . 1 . Protomatter Created 1480 | . 415 533 46 . 486 Integrity Restored 2761 | . 407 1244 135 . 975 Core 1806 | . 285 797 69 . 655 Parts 955 | . 122 447 66 . 320 Protomatter Decayed 1763 | . 253 218 . . 1292 Game ------ Seed StructuralSalvagingClaymores Manual? 0 Play Time 00:57:57 Cumulative 278.8 hours Start 2025.03.22 @ 07:13:03 End 2025.03.22 @ 08:18:56 Sessions 1 Manual Loads 0 Difficulty Adventurer Special Mode Winter2019/RPGLIKE Game No. 114 Rogue 0 Adventurer 114 Explorer 0 Win Type - Total 11 Types 2/2/3/2/1/0/0/0/1 Lore% 81 Gallery% 76 Achievement% 78 Wizard Run 0 Options --------- Layout 2 ASCII 0 Keyboard 0 Movement Numpad Keybinds 0 Fullscreen 2 Font 24/Smallcaps Map View 50x44 Zoom Use 0% Tactical HUD 1 Map Filters NONE Filters NONE Steam 1 RUN: 6f51a9a3-a797-499f-9357-165dd39e298f